bitfinex/quotes_ETHUSD_20240910
["timestamp","ask_amount","ask_price","bid_price","bid_amount"]
[1725999093561,9.8096,2387.4,2386.6,0.85034955]
[1725999095969,2.3196,2387.4,2386.6,0.93414417]
[1725999096201,9.8235,2387.6,2386.8,2.4782]
[1725999096357,2.3335,2387.6,2386.9,0.55]
[1725999098974,11.4441859,2387.8,2387.0,0.08378033]
[1725999099160,11.4441859,2387.8,2387.1,0.55]
[1725999099361,7.49,2387.8,2387.2,2.357]
[1725999099569,7.49,2387.8,2387.3,0.55]
[1725999099768,2.4906,2387.9,2387.3,0.55]
[1725999099972,2.4906,2387.9,2387.4,0.2907]
[1725999100261,2.4906,2387.9,2387.5,0.55]
[1725999104011,3.9541859,2388.1,2387.5,0.55]
[1725999104175,6.3177859,2388.1,2387.5,0.55]
[1725999104881,10.5052959,2388.1,2387.5,0.55]
[1725999105095,3.9541859,2387.9,2387.2,2.357]
[1725999105268,3.9541859,2387.9,2387.3,0.55]
[1725999105474,3.9541859,2387.9,2387.3,0.8407]
[1725999112834,3.9541859,2387.9,2387.3,0.55]
[1725999119026,8.1420459,2387.9,2387.3,0.55]
[1725999122546,3.9541859,2387.9,2387.3,0.55]
[1725999129808,3.9541859,2387.9,2387.4,2.4437]
[1725999130009,3.9541859,2387.9,2387.5,0.55]
[1725999133570,4.83371072,2387.9,2387.5,0.55]
[1725999133778,3.9541859,2387.9,2387.5,0.55]
[1725999134081,4.83371072,2387.9,2387.5,0.55]
[1725999135257,0.87952482,2387.8,2387.5,0.55]
[1725999135455,0.87952482,2387.7,2387.0,2.2581]
[1725999135781,0.87952482,2387.7,2387.1,0.55]
[1725999136279,0.87952482,2387.6,2387.1,0.55]
[1725999136671,0.87952482,2387.7,2387.1,0.55]
[1725999137244,0.87952482,2387.6,2387.1,0.55]
[1725999137440,0.87952482,2387.6,2387.2,0.28081]
[1725999137682,0.87952482,2387.6,2387.3,0.55]
[1725999139149,0.87952482,2387.6,2387.0,2.2581]
[1725999139150,0.87952482,2387.4,2387.0,2.2581]
[1725999139755,0.87952482,2387.5,2387.0,2.2581]
[1725999139977,0.87952482,2387.4,2387.0,2.2581]
[1725999140756,0.87952482,2387.4,2387.1,0.55]
[1725999141163,0.87952482,2387.3,2387.1,0.55]
[1725999141362,0.87952482,2387.4,2387.1,0.55]
[1725999143376,0.87952482,2387.4,2387.1,0.87277585]
[1725999144073,0.87952482,2387.4,2387.2,2.435]
[1725999144271,1.75904965,2387.7,2387.3,0.55]
[1725999144272,0.87952482,2387.7,2387.3,0.55]
[1725999144473,0.87952482,2387.6,2387.3,0.55]
[1725999147108,0.87952482,2387.6,2387.3,0.93227932]
[1725999147426,0.87952482,2387.8,2387.4,2.2666]
[1725999147705,0.87952482,2387.8,2387.5,0.55]
[1725999150213,0.87952482,2387.9,2387.5,0.55]
[1725999151014,0.87952482,2387.8,2387.5,0.55]
[1725999151417,0.87952482,2387.9,2387.5,0.55]
[1725999151990,0.87952482,2387.8,2387.5,0.55]
[1725999152979,1.34152313,2388.0,2387.5,0.55]
[1725999152980,0.87952482,2387.9,2387.5,0.55]
[1725999154997,2.19881205,2387.9,2387.5,0.55]
[1725999155204,0.90176072,2388.0,2387.6,2.3526]
[1725999155401,0.0222359,2388.0,2387.7,0.55]
[1725999159795,0.0222359,2388.0,2387.9,2.3122]
[1725999160049,0.0266565,2388.4,2387.9,2.3122]
[1725999160050,0.0266565,2388.4,2388.0,2.3122]
[1725999160340,0.0266565,2388.4,2388.2,2.414]
[1725999160541,0.0266565,2388.4,2388.3,2e-08]
[1725999163504,0.0266565,2388.4,2388.1,0.63373117]
[1725999164308,0.0266565,2388.4,2388.1,0.55]
[1725999164509,0.0266565,2388.4,2387.9,0.55]
[1725999164832,0.0266565,2388.4,2388.0,0.08374024]
[1725999165003,0.0266565,2388.4,2388.1,0.55]
[1725999165449,0.0266565,2388.4,2388.2,0.0837402]
[1725999166609,0.0266565,2388.4,2388.1,0.55]
[1725999166841,0.0266565,2388.4,2387.8,0.08373336]
[1725999167151,0.0266565,2388.4,2387.8,1.13011087]
[1725999167685,0.0266565,2388.4,2387.8,5.08429677]
[1725999167851,0.0266565,2388.4,2387.9,3.0]
[1725999168051,0.0266565,2388.4,2388.0,0.08373224]
[1725999168255,3.9808424,2388.4,2387.9,0.08373155]
[1725999168457,2.4664,2387.9,2387.5,0.92420353]
[1725999168670,4.05188961,2387.8,2387.5,0.92420353]
[1725999169183,6.4205859,2387.6,2387.5,0.92420353]
[1725999169483,10.6088859,2387.6,2387.5,0.92420353]
[1725999169642,2.4563,2387.4,2386.5,0.0266565]
[1725999169846,3.9541859,2387.0,2386.5,0.0266565]
[1725999170084,3.9541859,2387.2,2386.5,0.0266565]
[1725999170299,0.09770371,2387.1,2386.5,0.11044934]
[1725999170585,0.09770371,2387.1,2386.5,0.0266565]
[1725999171651,2.4002,2387.0,2386.5,0.0266565]
[1725999172655,0.09770371,2386.9,2386.5,0.0266565]
[1725999173945,3.9541859,2386.8,2386.5,0.0266565]
[1725999174251,6.2175859,2386.6,2386.5,0.0266565]
[1725999175611,2.2634,2386.6,2386.5,0.0266565]
[1725999176168,6.2175859,2386.6,2386.5,0.0266565]
[1725999176778,2.2634,2386.6,2386.5,0.0266565]
[1725999178218,2.2829,2387.2,2386.5,0.0266565]
[1725999178378,0.09770371,2387.1,2386.5,0.0266565]
[1725999178582,3.09770371,2387.1,2386.5,0.0266565]
[1725999180088,0.09770371,2387.1,2386.5,0.0266565]
[1725999180780,10.5654759,2387.5,2386.5,0.0266565]
[1725999180781,0.09770371,2387.4,2386.5,0.0266565]
[1725999181796,3.09770371,2387.4,2386.5,0.0266565]
[1725999182121,0.09770371,2387.4,2386.5,0.0266565]
[1725999182510,0.09770371,2387.4,2386.5,0.66044316]
[1725999182700,0.09770371,2387.4,2386.6,0.36604432]
[1725999182893,0.09770371,2387.4,2386.7,0.63378664]
[1725999183514,0.09770371,2387.4,2386.8,0.08378662]
[1725999183723,11.4441859,2387.6,2386.9,0.55]
[1725999183724,0.09770371,2387.5,2386.9,0.55]
[1725999184034,0.09770371,2387.5,2387.0,0.08377783]
[1725999184590,0.09770371,2387.7,2387.0,0.08377783]
[1725999186498,0.09770371,2387.8,2387.1,0.55]
[1725999186701,0.09770371,2387.8,2387.2,0.08376764]
[1725999187003,0.09770371,2387.8,2387.3,0.55]
[1725999187702,0.09770371,2387.9,2387.3,0.55]
[1725999187886,0.09770371,2388.0,2387.3,0.55]
[1725999188229,0.09770371,2388.0,2387.4,0.08376243]
[1725999188386,0.09770371,2388.0,2387.3,0.63376482]
[1725999188587,7.58770371,2388.1,2387.3,0.63376482]
[1725999189386,7.58770371,2388.1,2387.4,0.0837606]
[1725999189709,7.58770371,2388.1,2387.5,0.55]
[1725999189959,7.49,2388.1,2387.5,0.55]
[1725999190443,7.49,2388.1,2387.6,0.08375965]
[1725999190734,7.49,2388.1,2387.7,0.55]
[1725999191242,0.0266565,2388.4,2387.8,0.08375489]
[1725999191401,0.0266565,2388.4,2387.9,0.55]
[1725999191747,0.0266565,2388.4,2388.0,0.08374142]
[1725999196448,0.0266565,2388.4,2388.1,0.55]
[1725999196649,0.0266565,2388.4,2388.2,0.08373458]
[1725999196943,0.0266565,2388.4,2387.7,0.08373458]
[1725999197111,0.0266565,2388.4,2387.8,0.55]
[1725999197312,0.0266565,2388.4,2387.9,0.08374197]
[1725999197512,0.0266565,2388.4,2388.0,0.55]
[1725999200424,0.0266565,2388.4,2387.9,0.0837431]
[1725999200629,0.0266565,2388.4,2388.0,0.55]
[1725999201042,2.2900565,2388.4,2388.0,0.55]
[1725999201249,0.09770371,2388.3,2387.8,0.55]
[1725999201455,0.09770371,2388.3,2387.8,1.73217921]
[1725999201765,0.09770371,2388.3,2387.8,0.55]
[1725999201920,0.09770371,2388.3,2387.7,0.55]
[1725999204421,0.09770371,2388.3,2387.4,0.08375248]
[1725999204728,0.09770371,2388.3,2387.5,0.55]
[1725999204926,0.09770371,2388.3,2387.6,0.08375537]
[1725999208565,0.0266565,2388.4,2387.6,0.08375537]
[1725999208871,0.0266565,2388.4,2387.7,0.55]
[1725999209024,0.0266565,2388.4,2387.8,0.08374552]
[1725999209224,0.0266565,2388.4,2387.9,0.55]
[1725999210637,0.0266565,2388.4,2388.0,0.08374552]
[1725999212577,0.0266565,2388.4,2388.1,0.55]
[1725999212739,0.0266565,2388.4,2388.2,0.08373467]
[1725999214433,0.0266565,2388.4,2388.2,0.08373471]
[1725999215366,0.0266565,2388.4,2388.1,0.55]
[1725999220507,0.0266565,2388.4,2388.2,4.03792412]
[1725999220709,0.0266565,2388.4,2388.3,3.54250341]
[1725999220997,0.0266565,2388.9,2388.3,4.09250341]
[1725999221193,0.0266565,2388.9,2388.4,0.55]
[1725999221369,0.0266565,2388.9,2388.5,0.08371237]
[1725999221573,0.0266565,2388.9,2388.6,0.55]
[1725999221880,0.0266565,2388.9,2388.6,0.63371167]
[1725999222079,0.0266565,2388.9,2388.6,0.55]
[1725999223555,0.0266565,2388.9,2388.4,0.6337215]
[1725999227725,0.0266565,2388.9,2388.4,4.5879074]
[1725999227884,0.0266565,2388.9,2388.7,3.9541859]
[1725999228085,0.0266565,2388.9,2388.5,3.75879074]
[1725999228319,0.0266565,2388.9,2388.5,0.75879074]
[1725999228478,0.0266565,2388.9,2388.4,0.55]
[1725999228673,0.0266565,2388.9,2388.3,0.55]
[1725999228887,0.0266565,2388.9,2388.4,0.08372132]
[1725999229117,0.0266565,2388.9,2388.5,0.55]
[1725999229422,0.0266565,2388.9,2388.3,4.5041859]
[1725999229578,0.0266565,2388.9,2388.4,3.43872125]
[1725999229910,0.0266565,2388.9,2388.5,0.55]
[1725999230076,0.0266565,2388.9,2388.6,0.08370802]
[1725999230411,0.0266565,2388.9,2388.7,0.55]
[1725999230617,0.0266565,2388.9,2388.8,0.08370797]
[1725999230813,0.0266565,2388.9,2388.8,0.99707877]
[1725999232197,0.0266565,2388.9,2388.8,0.44707877]
[1725999232394,2.3051565,2388.9,2388.4,3.355]
[1725999232730,2.3051565,2388.9,2388.5,0.08372097]
[1725999232884,0.0266565,2388.9,2388.5,3.08372097]
[1725999233084,0.0266565,2388.9,2388.6,0.3438721]
[1725999233325,0.0266565,2388.9,2388.7,0.08371398]
[1725999233806,0.0266565,2388.9,2388.7,4.03789988]
[1725999234003,0.0266565,2388.9,2388.8,0.633707]
[1725999234595,0.0266565,2388.9,2388.8,3.633707]
[1725999234799,0.0266565,2388.9,2388.8,4.7268835]
[1725999237085,0.0266565,2388.9,2388.8,0.633707]
[1725999237284,0.0266565,2388.9,2388.7,0.08370405]
[1725999239910,0.0266565,2388.9,2388.6,0.42758903]
[1725999240242,2.3051,2388.8,2388.3,0.08372113]
[1725999240445,2.3051,2388.8,2388.3,0.0837306]
[1725999240626,2.3051,2388.8,2388.0,0.0837306]
[1725999240810,2.3051,2388.8,2388.1,3.9541859]
[1725999241010,2.3051,2388.8,2388.2,0.48752227]
[1725999241227,2.3051,2388.8,2387.9,3.9541859]
[1725999241606,2.3051,2388.8,2388.0,0.08373063]
[1725999241934,2.4563,2388.6,2388.1,0.55]
[1725999242101,0.09770371,2388.5,2387.8,0.08373557]
[1725999242303,2.4563,2388.4,2387.8,1.13341859]
[1725999242570,2.4563,2388.4,2387.5,13.23169736]
[1725999243105,2.4563,2388.4,2387.5,12.65868993]
[1725999243411,2.4563,2388.4,2387.7,3.9541859]
[1725999243611,2.4543,2388.7,2387.9,3.9541859]
[1725999243828,7.49,2388.8,2387.6,2.59748905]
[1725999243829,0.09770371,2388.6,2388.0,3.08373102]
[1725999244028,2.4543,2388.5,2387.8,3.0]
[1725999244219,2.55200371,2388.4,2387.9,0.3]
[1725999244418,8.36952482,2388.8,2388.0,0.08374676]
[1725999244763,2.4543,2388.7,2388.1,3.9541859]
[1725999245064,2.4543,2388.7,2388.2,0.08372738]
[1725999245250,2.4543,2388.7,2388.3,0.55]
[1725999245453,2.4543,2388.7,2388.4,0.08372739]
[1725999245653,2.4870565,2388.9,2388.4,0.08372739]
[1725999245858,2.4870565,2388.9,2388.5,0.55]
[1725999246062,2.4870565,2388.9,2388.6,0.08371801]
[1725999246063,0.0266565,2388.9,2388.6,0.08371801]
[1725999246232,0.0266565,2388.9,2388.7,0.55]
[1725999246443,0.0266565,2388.9,2388.8,0.08370935]
[1725999246651,0.0266565,2388.9,2388.8,0.63370935]
[1725999250226,0.0266565,2388.9,2388.6,0.3633718]
[1725999252530,0.0266565,2388.9,2388.8,1.09249551]
[1725999255436,0.0266565,2388.9,2388.8,0.63370629]
[1725999255793,0.0266565,2388.9,2388.8,0.55]
[1725999256086,0.0266565,2388.9,2388.7,0.55]
[1725999256287,0.0266565,2388.9,2388.8,0.08371235]
[1725999256457,0.0266565,2388.9,2388.8,0.63371235]
[1725999257042,0.0266565,2388.9,2388.8,1.09250218]
[1725999260945,0.0062786,2389.0,2388.8,1.09250218]
[1725999261281,0.0062786,2389.0,2388.9,0.55]
[1725999262468,0.0062786,2389.0,2388.9,4.5041859]
[1725999262668,0.0062786,2389.0,2388.9,0.55]
[1725999263058,0.0062786,2389.0,2388.7,0.55]
[1725999263264,0.0062786,2389.0,2388.8,0.45041859]
[1725999263446,0.0062786,2389.0,2388.9,0.55]
[1725999264531,0.0062786,2389.0,2388.9,0.63370795]
[1725999264961,0.0062786,2389.0,2388.9,0.55]
[1725999265742,2.3757,2388.9,2388.7,3.0]
[1725999265949,2.3757,2388.9,2388.4,1.89635677]
[1725999265950,2.3757,2388.9,2388.5,0.08371849]
[1725999266160,2.3757,2388.9,2388.6,0.88204019]
[1725999266374,2.3757,2388.9,2388.7,0.08371849]
[1725999266582,2.3757,2388.9,2388.5,4.76392531]
[1725999266937,2.3757,2388.9,2388.6,0.55]
[1725999267141,2.3757,2388.9,2388.6,0.08372048]
[1725999267347,2.3757,2388.9,2388.6,0.08372157]
[1725999268043,2.3757,2388.9,2388.5,3.0]
[1725999268276,2.3757,2388.9,2388.5,3.78203865]
[1725999268455,2.3757,2388.9,2388.6,0.08372161]
[1725999269353,2.3757,2388.9,2388.5,3.78203865]
[1725999269569,2.3757,2388.9,2388.6,0.08372164]
[1725999274207,2.3757,2388.9,2388.4,0.41792971]
[1725999274373,2.3757,2388.9,2388.5,0.55]
[1725999274787,2.3757,2388.9,2388.6,0.08372189]
[1725999275112,2.3757,2388.9,2388.6,0.08372191]
[1725999275908,2.3757,2388.9,2388.5,0.96792971]
[1725999276072,2.3757,2388.9,2388.6,0.08372187]
[1725999276980,2.3757,2388.9,2388.6,0.50165158]
[1725999277186,2.3757,2388.9,2388.7,0.55]
[1725999277711,0.0062786,2389.0,2388.7,0.96826279]
[1725999278121,0.0062786,2389.0,2388.7,0.55]
[1725999278478,0.0062786,2389.0,2388.7,0.96826279]
[1725999279011,0.0062786,2389.0,2388.7,0.55]
[1725999279875,0.0062786,2389.0,2388.7,0.96826279]
[1725999280803,0.0062786,2389.0,2388.7,0.55]
[1725999281004,0.0062786,2389.0,2388.7,0.96826279]
[1725999281752,0.0062786,2389.0,2388.7,0.55]
[1725999282037,0.0062786,2389.0,2388.7,0.96826279]
[1725999284126,0.0062786,2389.0,2388.7,0.55]
[1725999284450,0.0062786,2389.0,2388.7,0.96820714]
[1725999284748,0.0062786,2389.0,2388.7,0.55]
[1725999284947,0.0062786,2389.0,2388.7,0.96820714]
[1725999285104,0.0062786,2389.0,2388.8,0.08371655]
[1725999285646,0.0062786,2389.0,2388.7,0.55]
[1725999285647,2.4871,2388.9,2388.7,0.55]
[1725999285847,2.4871,2388.9,2388.7,0.63371811]
[1725999286209,2.4871,2388.9,2388.7,1.05192525]
[1725999286510,2.4871,2388.9,2388.7,0.63371811]
[1725999286739,2.4871,2388.9,2388.7,0.55]
[1725999286936,2.4871,2388.9,2388.7,0.96820714]
[1725999287119,2.4871,2388.9,2388.7,0.55]
[1725999287326,2.4871,2388.9,2388.6,0.96820714]
[1725999287533,2.4871,2388.9,2388.7,0.41820714]
[1725999287781,2.4871,2388.9,2388.7,0.41835814]
[1725999287962,2.4871,2388.9,2388.7,0.08371814]
[1725999288685,2.4871,2388.9,2388.6,0.86735165]
[1725999288984,2.4871,2388.9,2388.7,0.08371817]
[1725999289192,0.0062786,2389.0,2388.7,0.08371817]
[1725999289956,0.0062786,2389.0,2388.6,0.7836333]
[1725999290454,0.0062786,2389.0,2388.7,0.08371667]
[1725999290888,2.4871,2388.9,2388.7,0.08371667]
[1725999291193,0.0062786,2389.0,2388.3,0.86620059]
[1725999291194,2.4871,2388.7,2388.3,0.86620059]
[1725999291346,2.4871,2388.7,2388.4,0.88521339]
[1725999291565,2.4871,2388.7,2388.3,0.86620059]
[1725999291765,2.4871,2388.7,2388.3,1.75146794]
[1725999291986,2.4871,2388.7,2388.3,4.75146794]
[1725999292202,2.4871,2388.7,2388.3,3.0]
[1725999292404,2.4871,2388.7,2388.4,0.88543068]
[1725999292712,0.09770371,2388.6,2388.2,5.19202109]
[1725999292878,4.30745764,2388.5,2388.2,0.6701068]
[1725999293079,2.58480371,2388.4,2387.8,2.19519797]
[1725999293403,2.58480371,2388.4,2387.8,3.16529949]
[1725999293611,2.58480371,2388.4,2387.9,0.88569933]
[1725999293906,2.58480371,2388.4,2387.8,0.75459193]
[1725999294063,2.58480371,2388.4,2387.9,0.88570821]
[1725999294602,0.09770371,2388.3,2387.8,0.6708436]
[1725999294789,2.4452,2388.2,2387.7,0.08374859]
[1725999294992,2.4452,2388.2,2387.7,1.04933925]
[1725999295305,0.09770371,2388.1,2387.7,1.72025301]
[1725999295507,2.3357,2388.0,2387.7,0.08374859]
[1725999296065,2.3357,2388.0,2387.6,0.08375212]
[1725999297102,2.3357,2388.0,2387.7,0.55]
[1725999297403,2.3357,2388.0,2387.7,1.35404086]
[1725999298804,2.3357,2388.0,2387.7,0.55]
[1725999300527,2.4349,2388.2,2387.7,0.55]
[1725999300845,2.4349,2388.2,2387.8,0.08375202]
[1725999301040,2.4349,2388.2,2387.9,0.55]
[1725999301196,2.2562,2388.5,2388.0,0.08374303]
[1725999301404,2.2562,2388.5,2388.1,0.55]
[1725999301634,2.2562,2388.5,2388.2,0.0837356]
[1725999301993,7.49,2388.7,2388.2,0.0837356]
[1725999301994,7.49,2388.7,2388.3,0.55]
[1725999302197,2.2562,2388.8,2388.4,0.08372761]
[1725999302809,2.2562,2388.8,2388.4,0.44710037]
[1725999303243,2.2562,2388.8,2388.4,0.08372761]
[1725999304238,0.10398231,2389.0,2388.1,0.08372771]
[1725999304239,2.2562,2388.6,2388.1,0.08372771]
[1725999304441,2.2562,2388.6,2388.2,0.55]
[1725999304735,2.2562,2388.6,2388.3,0.0837329]
[1725999305621,2.2562,2388.9,2388.3,0.0837329]
[1725999305821,0.09770371,2388.8,2388.3,0.0837329]
[1725999306609,2.2562,2388.9,2388.3,0.0837329]
[1725999307534,2.35390371,2388.9,2388.3,0.0837329]
[1725999307736,2.35390371,2388.9,2388.2,0.63373303]
[1725999308045,2.35390371,2388.9,2388.3,0.08373308]
[1725999308335,2.35390371,2388.9,2387.9,7.38]
[1725999308336,2.4372,2388.7,2387.9,7.38]
[1725999308540,2.4372,2388.5,2387.9,7.38]
[1725999308757,0.09770371,2388.4,2387.9,7.38]
[1725999308939,2.4372,2388.3,2387.9,7.38]
[1725999309099,0.09770371,2388.2,2387.9,7.38]
[1725999309299,0.09770371,2388.2,2387.5,0.0266565]
[1725999309617,0.09770371,2388.2,2387.6,0.88295176]
[1725999310016,0.09770371,2388.2,2387.7,0.63374783]
[1725999310547,0.09770371,2388.2,2387.8,0.08374899]
[1725999310758,0.09770371,2388.2,2387.7,0.55]
[1725999310906,0.09770371,2388.2,2387.5,0.5766565]
[1725999311107,2.4372,2388.1,2387.6,0.66048202]
[1725999311443,0.09770371,2388.0,2387.6,0.57672934]
[1725999311650,2.4372,2388.1,2387.5,0.11041313]
[1725999312646,2.4372,2388.1,2387.6,0.55]
[1725999313861,0.09770371,2388.0,2387.6,0.55]
[1725999314357,2.3184,2387.9,2387.5,0.0266565]
[1725999314521,0.09770371,2387.8,2387.5,0.0266565]
[1725999314721,2.3184,2387.9,2387.5,0.0266565]
[1725999317124,2.4914,2388.2,2387.5,0.11041837]
[1725999317326,2.4914,2388.2,2387.6,0.55]
[1725999317515,0.09770371,2388.4,2387.7,0.08375134]
[1725999317716,2.58910371,2388.4,2387.8,0.55]
[1725999318059,2.4914,2388.4,2387.9,0.08374774]
[1725999318215,2.4914,2388.4,2388.0,0.55]
[1725999318842,0.09770371,2388.6,2388.1,0.08374151]
[1725999318843,2.58910371,2388.6,2388.1,0.08374151]
[1725999319176,2.4914,2388.6,2388.2,0.55]
[1725999320464,2.4914,2388.9,2388.2,0.55]
[1725999320622,0.09770371,2388.8,2388.2,0.55]
[1725999320825,0.09770371,2388.8,2388.2,0.91337415]
[1725999321410,0.09770371,2388.8,2388.2,0.55]
[1725999323971,2.58910371,2388.9,2388.3,0.08373353]
[1725999324770,2.4914,2388.9,2388.3,0.08373353]
[1725999327475,0.10398231,2389.0,2388.3,0.08373353]
[1725999328984,2.4101,2388.6,2387.8,7.38]
[1725999329308,2.4101,2388.6,2387.6,0.67042699]
[1725999329309,2.4101,2388.4,2387.6,0.67042699]
[1725999329597,2.50780371,2388.3,2387.6,0.08374998]
[1725999329747,0.09770371,2388.2,2387.6,0.08374998]
[1725999330507,0.09770371,2388.2,2387.5,0.11041301]
[1725999331074,0.09770371,2388.2,2387.5,0.81607486]
[1725999331858,0.09770371,2388.2,2387.6,0.55]
[1725999334958,2.4101,2388.1,2387.5,0.73231835]
[1725999335261,0.09770371,2388.0,2387.5,0.0266565]
[1725999335668,2.4101,2387.9,2387.5,0.0266565]
[1725999336795,0.09770371,2387.8,2387.5,0.0266565]
[1725999337771,2.3384,2388.1,2387.5,0.0266565]
[1725999337977,0.09770371,2388.0,2387.5,0.0266565]
[1725999338415,0.09770371,2388.0,2387.5,0.11041824]
[1725999338708,2.43610371,2388.1,2387.5,0.11041824]
[1725999338922,2.3384,2388.1,2387.5,0.65770068]
[1725999341523,0.09770371,2388.0,2387.5,0.65770068]
[1725999341927,2.3384,2388.1,2387.5,0.65770068]
[1725999342293,0.09770371,2388.0,2387.5,0.65770068]
[1725999342481,0.09770371,2388.0,2387.6,0.42077007]
[1725999344520,0.09770371,2388.0,2387.5,0.11041824]
[1725999344908,2.43610371,2388.1,2387.5,0.11041824]
[1725999346720,2.43610371,2388.1,2387.5,0.0266565]
[1725999347345,6.38230923,2388.1,2387.5,0.0266565]
[1725999352019,2.43610371,2388.1,2387.5,0.0266565]
[1725999352211,2.43610371,2388.1,2387.5,0.11041792]
[1725999352417,2.3384,2388.1,2387.5,0.11041792]
[1725999354362,0.09770371,2388.0,2387.5,0.11041792]
[1725999355070,2.4548,2387.9,2387.5,0.0266565]
[1725999357235,2.4548,2387.9,2387.5,0.44651585]
[1725999358327,2.4548,2387.9,2387.6,0.41985935]
[1725999358529,2.4548,2387.9,2387.7,0.41985935]
[1725999358765,2.4548,2387.9,2387.5,0.11041763]
[1725999358766,2.4548,2387.9,2387.6,0.41985935]
[1725999358975,0.09770371,2388.3,2387.5,0.11041763]
[1725999358976,2.3323,2388.2,2387.5,0.11041763]
[1725999359176,2.3323,2388.2,2387.7,0.41977224]
[1725999359464,0.09770371,2388.1,2387.5,0.11041763]
[1725999359768,0.09770371,2388.1,2387.6,0.41981063]
[1725999359930,0.09770371,2388.1,2387.7,0.41981063]
[1725999360130,0.09770371,2388.1,2387.5,0.11041763]
[1725999360480,2.3323,2388.2,2387.6,0.96982345]
[1725999360631,10.71152482,2388.4,2387.7,0.50356964]
[1725999360831,3.22152482,2388.4,2387.8,1.05356914]
[1725999361158,3.22152482,2388.4,2387.9,0.41962073]
[1725999361469,3.22152482,2388.4,2388.0,0.41962073]
[1725999361676,3.22152482,2388.4,2387.8,0.08374569]
[1725999361986,2.342,2388.1,2387.7,0.41978156]
[1725999362157,1.82207473,2387.9,2387.5,0.0266565]
[1725999362481,0.09770371,2387.8,2387.5,1.06732215]
[1725999362633,0.09770371,2388.0,2387.5,0.0266565]
[1725999365557,2.3381,2387.9,2387.5,0.0266565]
[1725999365733,0.09770371,2387.8,2387.5,0.0266565]
[1725999367463,2.43580371,2387.9,2387.5,0.0266565]
[1725999371481,4.27257473,2387.6,2387.5,0.0266565]
[1725999372189,4.37027844,2387.6,2387.5,0.0266565]
[1725999373480,4.27257473,2387.6,2387.5,0.0266565]
[1725999373680,4.37027844,2387.6,2387.5,0.0266565]
[1725999374356,2.54820371,2387.6,2387.5,0.0266565]
[1725999378061,2.54820371,2387.6,2387.0,0.0266565]
[1725999378062,5.60537094,2387.6,2387.0,0.0266565]
[1725999378391,2.301,2387.2,2387.0,0.0266565]
[1725999378692,2.39870371,2387.1,2387.0,0.0266565]
[1725999379547,2.301,2387.1,2387.0,0.0266565]
[1725999379946,2.39870371,2387.1,2387.0,0.0266565]
[1725999380183,6.58788371,2387.1,2387.0,0.0266565]
[1725999380553,10.46729523,2387.1,2387.0,0.0266565]
[1725999381073,10.46729523,2387.1,2386.5,0.0266565]
[1725999381074,2.4709,2387.0,2386.5,0.0266565]
[1725999381277,2.4709,2386.7,2386.5,0.0266565]
[1725999381590,2.56860371,2386.6,2386.5,0.0266565]
[1725999382373,2.4709,2386.6,2386.5,0.0266565]
[1725999384278,2.56860371,2386.6,2386.5,0.0266565]
[1725999386604,10.70787096,2386.6,2386.5,0.0266565]
[1725999386907,7.04691096,2386.6,2386.0,0.0266565]
[1725999387077,3.94920725,2386.1,2386.0,0.0266565]
[1725999387408,5.58900371,2386.1,2386.0,0.0266565]
[1725999387608,7.49,2386.9,2386.0,0.0266565]
[1725999387756,2.58900371,2386.8,2386.1,0.0799]
[1725999387957,0.09770371,2386.7,2386.1,0.0799]
[1725999388460,0.09770371,2386.7,2386.2,0.55]
[1725999388788,0.09655942,2386.7,2386.1,0.0799]
[1725999389514,0.09655942,2386.8,2386.2,0.55]
[1725999389716,0.09655942,2386.8,2386.2,0.63380568]
[1725999390082,0.09655942,2386.8,2386.7,4.18988]
[1725999390282,0.09655942,2386.8,2386.7,8.37976]
[1725999390496,0.09655942,2386.9,2386.8,4.18959]
[1725999391920,0.09655942,2386.9,2386.7,4.18988]
[1725999392121,0.09655942,2386.9,2386.7,4.18979]
[1725999392816,4.04576667,2386.9,2386.7,4.18979]
[1725999394524,3.0,2386.8,2386.7,4.18979]
[1725999394723,3.0,2386.8,2386.0,0.0266565]
[1725999394724,2.4686,2386.8,2386.0,0.19035845]
[1725999395022,0.09655942,2386.7,2386.0,0.54471435]
[1725999397102,0.09655942,2386.7,2386.1,0.08381582]
[1725999397402,7.49,2387.2,2386.3,0.0799]
[1725999397591,7.49,2387.2,2386.5,0.0799]
[1725999397784,2.3429,2387.6,2386.6,0.0799]
[1725999397785,7.58655942,2387.5,2386.6,0.0799]
[1725999398086,9.40924989,2387.5,2386.8,0.0799]
[1725999398309,9.40924989,2387.5,2386.8,0.16368242]
[1725999399594,9.40924989,2387.5,2386.8,0.08378242]
[1725999399796,9.40924989,2387.5,2386.9,0.0799]
[1725999400010,7.58655942,2387.5,2386.9,0.0799]
[1725999402816,7.49,2387.8,2387.1,0.0799]
[1725999402988,0.12321592,2388.0,2387.3,0.0799]
[1725999403188,0.12321592,2388.0,2387.3,0.16366623]
[1725999403525,0.12321592,2388.0,2387.3,0.0799]
[1725999407403,4.07176629,2388.0,2387.3,0.0799]
[1725999408910,0.12321592,2388.0,2387.3,0.0799]
[1725999410039,3.94855037,2387.6,2387.0,0.0799]
[1725999410342,0.09655942,2387.5,2387.0,0.0799]
[1725999412840,2.3827,2387.4,2386.8,0.0799]
[1725999413048,0.09655942,2387.3,2386.8,0.0799]
[1725999414230,0.09655942,2387.3,2386.4,0.0799]
[1725999414546,0.09655942,2387.3,2386.5,0.55]
[1725999414742,0.09655942,2387.3,2386.5,0.63379377]
[1725999415040,0.09655942,2387.3,2386.4,0.16369378]
[1725999415207,3.94855037,2387.2,2386.4,0.0799]
[1725999415552,0.09655942,2387.1,2386.4,0.0799]
[1725999416818,6.33125037,2387.4,2386.4,0.0799]
[1725999416819,0.09655942,2387.3,2386.4,0.0799]
[1725999420807,0.09655942,2387.4,2386.6,0.0799]
[1725999421122,0.09655942,2387.4,2386.8,0.0799]
[1725999421325,0.09655942,2387.4,2386.8,0.16368307]
[1725999422240,0.09655942,2387.4,2386.9,0.0799]
[1725999422617,0.09655942,2387.5,2386.9,0.0799]
[1725999423941,2.51475942,2387.5,2386.9,0.0799]
[1725999424142,3.94855037,2387.2,2386.4,0.0799]
[1725999424475,0.09655942,2387.1,2386.4,0.0799]
[1725999425366,0.09655942,2387.3,2386.4,0.0799]
[1725999428054,2.4182,2387.2,2386.4,0.0799]